bitfinex/quotes_SOLUSD_20230701
["timestamp","ask_amount","ask_price","bid_price","bid_amount"]
[1688182538235,23.044,18.357,18.349,23.051]
[1688182538641,23.044,18.357,18.344,13.04090164]
[1688182538834,23.044,18.357,18.347,23.054]
[1688182538835,3.32859176,18.356,18.347,23.054]
[1688182539038,23.045,18.355,18.348,13.04090164]
[1688182539338,23.045,18.355,18.347,23.054]
[1688182540242,23.045,18.355,18.346,13.04090164]
[1688182540652,2.61488733,18.354,18.344,13.04090164]
[1688182540942,23.047,18.354,18.347,13.04090164]
[1688182542638,82.38,18.354,18.347,13.04090164]
[1688182542944,3.32888355,18.353,18.344,13.04090164]
[1688182543146,23.051,18.351,18.344,13.04090164]
[1688182543443,23.051,18.351,18.342,13.04090164]
[1688182543828,23.051,18.351,18.342,36.10190164]
[1688182554554,90.39,18.35,18.342,13.04090164]
[1688182554741,82.407,18.348,18.335,13.04090164]
[1688182555053,23.06,18.344,18.333,36.11290164]
[1688182555755,4.92067128,18.343,18.333,36.11290164]
[1688182555956,23.063,18.341,18.333,36.11290164]
[1688182556454,23.063,18.341,18.333,13.04090164]
[1688182557362,20.0,18.34,18.333,13.04090164]
[1688182557658,4.92067128,18.337,18.325,13.04090164]
[1688182557857,23.072,18.334,18.325,36.12290164]
[1688182559546,23.07,18.336,18.325,36.12290164]
[1688182559745,4.92067128,18.335,18.325,36.12290164]
[1688182561047,87.38567128,18.335,18.325,13.04090164]
[1688182561250,55.0,18.334,18.317,13.04090164]
[1688182561558,23.078,18.329,18.321,23.087]
[1688182562763,23.078,18.329,18.32,13.04090164]
[1688182563056,4.92067128,18.328,18.32,13.04090164]
[1688182563251,23.082,18.326,18.318,13.04090164]
[1688182563838,82.487,18.331,18.318,13.04090164]
[1688182563839,23.08,18.328,18.318,36.13190164]
[1688182564758,26.88478356,18.335,18.318,36.13190164]
[1688182564759,59.386,18.338,18.32,36.12890164]
[1688182564956,64.32967128,18.337,18.321,55.0]
[1688182565263,23.073,18.333,18.324,23.083]
[1688182565649,23.073,18.333,18.325,13.04090164]
[1688182565846,23.073,18.333,18.326,23.081]
[1688182566957,23.073,18.333,18.324,23.083]
[1688182567263,23.073,18.333,18.325,13.04090164]
[1688182568549,55.0,18.332,18.325,13.04090164]
[1688182568750,23.076,18.331,18.324,23.083]
[1688182569158,59.409,18.337,18.324,23.083]
[1688182569361,59.92067128,18.336,18.325,13.04090164]
[1688182569552,23.07,18.335,18.327,23.079]
[1688182570253,4.92067128,18.334,18.327,23.079]
[1688182570453,23.07,18.335,18.327,23.079]
[1688182576171,55.0,18.334,18.323,13.04090164]
[1688182576359,23.076,18.331,18.322,13.04090164]
[1688182576868,23.074,18.333,18.323,23.084]
[1688182577173,1.35483107,18.332,18.325,23.083]
[1688182577361,23.074,18.333,18.325,23.083]
[1688182579776,23.074,18.333,18.324,23.083]
[1688182580265,55.0,18.334,18.324,23.083]
[1688182580564,55.0,18.334,18.325,13.04090164]
[1688182580863,23.073,18.333,18.325,36.12290164]
[1688182581063,23.073,18.333,18.325,23.082]
[1688182581872,87.39412934,18.337,18.325,23.082]
[1688182582171,87.39412934,18.337,18.324,59.427]
[1688182582172,23.067,18.338,18.329,23.078]
[1688182582374,23.067,18.338,18.33,13.04090164]
[1688182582570,1.72168923,18.339,18.332,23.073]
[1688182582771,23.065,18.34,18.332,23.073]
[1688182582959,23.065,18.34,18.33,23.075]
[1688182583164,23.07,18.336,18.327,13.04090164]
[1688182584966,23.067,18.338,18.327,36.12090164]
[1688182586882,0.97802478,18.337,18.327,13.04090164]
[1688182587190,23.071,18.335,18.327,36.12090164]
[1688182588778,23.071,18.335,18.327,23.08]
[1688182594880,23.071,18.335,18.323,13.04090164]
[1688182595185,23.071,18.335,18.325,23.082]
[1688182595372,23.071,18.335,18.326,13.04090164]
[1688182596673,1.64159291,18.334,18.324,13.04090164]
[1688182596874,23.075,18.331,18.324,13.04090164]
[1688182598290,23.071,18.335,18.324,36.12390164]
[1688182598585,23.071,18.335,18.328,23.079]
[1688182601675,23.071,18.335,18.326,36.12090164]
[1688182602688,1.03539255,18.334,18.325,13.04090164]
[1688182602889,23.075,18.332,18.325,13.04090164]
[1688182605480,23.075,18.332,18.325,36.12290164]
[1688182605679,23.075,18.332,18.325,23.082]
[1688182606403,23.073,18.339,18.326,85.83719922]
[1688182606708,23.073,18.339,18.33,35.47]
[1688182606880,23.053,18.35,18.332,190.86]
[1688182607075,4.92067128,18.349,18.333,68.04090164]
[1688182607388,4.92067128,18.349,18.338,82.45]
[1688182607584,4.92067128,18.349,18.339,13.04090164]
[1688182607779,27.97367128,18.349,18.341,23.061]
[1688182607990,23.053,18.349,18.341,23.061]
[1688182608693,23.061,18.35,18.341,23.061]
[1688182608999,50.44039594,18.356,18.346,23.055]
[1688182609201,23.045,18.356,18.346,23.055]
[1688182611894,23.045,18.356,18.338,59.381]
[1688182612101,59.92067128,18.355,18.34,23.063]
[1688182612281,23.051,18.351,18.34,23.063]
[1688182612978,23.053,18.349,18.34,23.063]
[1688182613394,23.051,18.351,18.34,23.063]
[1688182615985,23.048,18.353,18.341,55.0]
[1688182616292,2.00581514,18.352,18.344,23.058]
[1688182616492,23.049,18.352,18.344,23.058]
[1688182618598,23.049,18.352,18.342,23.06]
[1688182618801,1.99886841,18.351,18.342,23.06]
[1688182619099,23.053,18.349,18.342,23.06]
[1688182619891,23.051,18.351,18.342,23.06]
[1688182623804,23.049,18.352,18.342,23.06]
[1688182627498,55.0,18.351,18.342,23.06]
[1688182627694,78.051,18.351,18.342,23.06]
[1688182634891,78.051,18.351,18.339,7.67762685]
[1688182635093,3.6710269,18.35,18.34,20.0]
[1688182635295,26.7230269,18.35,18.342,23.061]
[1688182635603,55.0,18.349,18.342,23.061]
[1688182636327,55.0,18.349,18.338,13.04090164]
[1688182636328,78.053,18.349,18.338,13.04090164]
[1688182636609,23.058,18.345,18.325,108.43]
[1688182636798,23.064,18.341,18.333,23.072]
[1688182637389,23.064,18.341,18.332,23.074]
[1688182637802,23.064,18.341,18.333,13.04090164]
[1688182638000,23.064,18.341,18.334,23.071]
[1688182638516,55.0,18.34,18.329,13.04090164]
[1688182638808,1.79077447,18.339,18.33,20.0]
[1688182639017,23.066,18.338,18.331,36.11590164]
[1688182639405,78.065,18.34,18.331,36.11590164]
[1688182643407,55.0,18.34,18.331,36.11590164]
[1688182643719,23.074,18.344,18.331,36.11590164]
[1688182644008,55.0,18.343,18.331,36.11590164]
[1688182644210,3.63871528,18.342,18.331,36.11590164]
[1688182646617,26.70071528,18.342,18.331,36.11590164]
[1688182646916,55.0,18.341,18.331,36.11590164]
[1688182649412,23.062,18.342,18.331,36.11590164]
[1688182649615,2.22210404,18.343,18.331,36.11590164]
[1688182649915,57.22210404,18.343,18.331,36.11590164]
[1688182650115,80.28210404,18.343,18.331,36.11590164]
[1688182661523,35.26,18.34,18.331,13.04090164]
[1688182661729,23.067,18.338,18.327,23.079]
[1688182662239,59.92067128,18.337,18.327,23.079]
[1688182662525,23.071,18.334,18.327,23.079]
[1688182662727,55.0,18.333,18.327,23.079]
[1688182663722,78.073,18.333,18.327,23.079]
[1688182664230,23.071,18.335,18.327,23.079]
[1688182664530,55.0,18.334,18.327,23.079]
[1688182664828,78.073,18.334,18.327,23.08]
[1688182666131,78.073,18.334,18.326,23.081]
[1688182666527,23.073,18.334,18.326,23.081]
[1688182666718,23.069,18.336,18.327,13.04090164]
[1688182666918,23.069,18.336,18.328,23.078]
[1688182667315,23.069,18.336,18.327,13.04090164]
[1688182667716,1.59623873,18.335,18.327,23.08]
[1688182667920,23.071,18.335,18.327,23.08]
[1688182668522,78.072,18.334,18.327,23.08]
[1688182668721,78.072,18.334,18.326,13.04090164]
[1688182669934,23.072,18.334,18.326,36.12190164]
[1688182674034,55.0,18.333,18.326,36.12190164]
[1688182674225,78.073,18.333,18.326,23.081]
[1688182677137,78.073,18.333,18.325,6.20880472]
[1688182677438,1.08534785,18.332,18.325,6.20880472]
[1688182677635,23.077,18.33,18.323,23.085]
[1688182677941,23.077,18.33,18.321,23.087]
[1688182678236,55.0,18.329,18.321,23.087]
[1688182678444,23.08,18.328,18.321,23.087]
[1688182682446,23.08,18.328,18.318,13.04090164]
[1688182682447,82.497,18.328,18.318,13.04090164]
[1688182682633,59.92067128,18.327,18.316,23.094]
[1688182682828,23.084,18.324,18.316,23.094]
[1688182683845,23.084,18.324,18.314,23.096]
[1688182684140,55.0,18.323,18.315,13.04090164]
[1688182684350,23.088,18.321,18.314,13.04090164]
[1688182684642,78.09,18.32,18.312,36.13990164]
[1688182685029,23.087,18.322,18.312,36.13990164]
[1688182685234,1.27666816,18.325,18.312,36.13990164]
[1688182685430,56.27666816,18.325,18.312,36.13990164]
[1688182686055,23.085,18.324,18.312,36.13990164]
[1688182687346,55.0,18.323,18.312,36.13990164]
[1688182687651,23.089,18.32,18.312,36.13990164]
[1688182688234,55.0,18.323,18.312,36.13990164]
[1688182689456,50.12641011,18.326,18.312,36.13990164]
[1688182689754,50.12641011,18.326,18.311,99.3912]
[1688182689755,27.96594282,18.33,18.316,23.093]
[1688182689936,2.78536775,18.329,18.316,23.093]
[1688182690138,2.78536775,18.329,18.317,13.04090164]
[1688182690443,23.082,18.326,18.318,23.091]
[1688182692155,23.082,18.326,18.317,13.04090164]
[1688182692369,23.085,18.324,18.317,13.04090164]
[1688182692750,23.085,18.324,18.316,23.093]
[1688182693549,23.085,18.324,18.314,23.095]
[1688182693860,23.085,18.324,18.315,36.13590164]
[1688182694264,55.0,18.325,18.315,36.13590164]
[1688182695670,23.085,18.324,18.315,36.13590164]
[1688182695867,23.085,18.324,18.315,23.095]
[1688182696551,23.084,18.325,18.316,13.04090164]
[1688182696751,82.509,18.329,18.317,23.093]
[1688182696957,4.06607186,18.328,18.317,23.093]
[1688182697855,23.084,18.325,18.317,23.093]
[1688182699756,23.084,18.325,18.315,23.094]
[1688182700064,23.084,18.325,18.316,13.04090164]
[1688182700263,23.084,18.325,18.315,13.04090164]
[1688182702874,23.084,18.325,18.315,36.13590164]
[1688182703077,23.084,18.325,18.315,23.095]
[1688182704281,23.084,18.325,18.316,36.13490164]
[1688182704458,23.084,18.325,18.316,23.094]
[1688182706175,23.081,18.327,18.319,23.09]
[1688182707568,23.081,18.327,18.32,4.30331391]
[1688182707874,23.081,18.327,18.32,27.39231391]
[1688182708075,23.081,18.327,18.32,23.089]
[1688182708276,87.90733933,18.337,18.32,58.509]
[1688182708472,4.92067128,18.336,18.321,68.04090164]
[1688182708674,23.074,18.333,18.324,23.083]
[1688182709076,23.074,18.333,18.325,13.04090164]
[1688182709273,23.074,18.333,18.326,23.081]
[1688182709869,59.444,18.337,18.326,23.081]
[1688182710074,23.071,18.335,18.326,23.081]
[1688182710276,82.513,18.337,18.326,23.081]
[1688182710475,0.91794204,18.336,18.327,13.04090164]
[1688182710778,23.07,18.336,18.328,23.079]
[1688182712774,23.07,18.336,18.326,23.08]
[1688182712975,23.07,18.336,18.327,13.04090164]
[1688182713175,23.07,18.336,18.327,36.12090164]
[1688182713484,23.07,18.336,18.327,23.08]
[1688182716076,23.067,18.338,18.328,55.0]
[1688182716273,23.067,18.338,18.33,23.076]
[1688182717972,23.067,18.338,18.329,13.04090164]
[1688182718573,23.067,18.338,18.329,36.11890164]
[1688182721098,23.067,18.338,18.329,13.04090164]
[1688182726008,23.067,18.338,18.329,36.11890164]
[1688182726194,35.38,18.35,18.332,23.073]
[1688182726378,23.059,18.344,18.333,13.04090164]
[1688182726580,23.059,18.344,18.336,23.069]
[1688182726887,1.81005207,18.349,18.337,13.04090164]
[1688182726888,23.057,18.346,18.337,13.04090164]
[1688182727087,23.057,18.346,18.338,23.066]
[1688182729393,55.0,18.345,18.335,13.04090164]
[1688182729587,23.061,18.342,18.334,23.07]
[1688182731594,55.0,18.345,18.334,23.07]
[1688182731787,23.06,18.344,18.335,13.04090164]
[1688182731987,23.06,18.344,18.336,23.069]
[1688182734606,78.057,18.346,18.336,23.069]
[1688182734804,55.0,18.346,18.337,13.04090164]
[1688182735007,78.055,18.347,18.339,23.064]
[1688182736500,23.059,18.349,18.339,23.064]
[1688182736706,46.113,18.349,18.339,23.064]
[1688182736891,55.0,18.348,18.339,23.064]
[1688182737602,78.054,18.348,18.339,23.064]
[1688182739607,23.054,18.348,18.339,23.064]
[1688182740005,23.059,18.349,18.339,23.064]
[1688182740201,59.335,18.354,18.339,23.064]
[1688182740406,23.053,18.349,18.339,23.064]
[1688182741206,55.0,18.348,18.338,6.58335319]
[1688182741398,23.058,18.345,18.338,29.64935319]
[1688182741592,23.058,18.345,18.338,23.066]
[1688182745711,23.056,18.347,18.338,23.066]
[1688182745931,55.0,18.346,18.338,23.066]
[1688182746598,78.056,18.346,18.338,23.066]
[1688182746808,23.055,18.348,18.338,23.066]
[1688182747109,1.06651053,18.349,18.339,8.03125315]
[1688182747301,1.06651053,18.349,18.342,23.061]
[1688182747501,46.116,18.35,18.342,23.061]
[1688182747700,23.064,18.35,18.342,23.061]
[1688182748613,46.115,18.35,18.342,23.061]
[1688182749107,23.064,18.35,18.342,23.061]
[1688182749418,59.329,18.356,18.342,23.061]
[1688182749595,23.049,18.352,18.342,23.061]
[1688182749916,20.0,18.351,18.342,23.061]
[1688182751409,23.049,18.352,18.342,23.061]
[1688182752413,1.46741344,18.353,18.342,23.061]
[1688182752611,78.048,18.353,18.342,23.061]
[1688182752998,1.16160752,18.352,18.342,23.061]
[1688182755713,55.0,18.353,18.342,23.061]
[1688182759207,50.172152,18.354,18.342,23.061]
[1688182759405,151.306,18.366,18.342,23.061]
[1688182759604,4.92067128,18.359,18.343,55.0]
[1688182759810,4.92067128,18.359,18.347,82.409]
[1688182760108,27.96067128,18.359,18.347,82.409]
[1688182760309,23.04,18.359,18.347,82.409]
[1688182761317,23.04,18.359,18.347,23.054]
[1688182761617,23.044,18.356,18.347,23.054]
[1688182763202,23.044,18.356,18.34,35.46]
[1688182763421,23.049,18.352,18.339,8.86610667]
[1688182763612,23.049,18.352,18.343,23.059]
[1688182764122,23.049,18.352,18.339,8.86610667]
[1688182764123,23.052,18.35,18.341,23.062]
[1688182764512,55.0,18.349,18.341,23.062]
[1688182764707,78.053,18.349,18.341,23.062]
[1688182765412,55.0,18.349,18.341,23.062]
[1688182765613,55.0,18.35,18.341,23.062]
[1688182766921,78.052,18.35,18.341,23.062]
[1688182769916,23.052,18.35,18.341,23.062]
[1688182770221,59.316,18.359,18.341,23.062]
[1688182770418,4.92067128,18.358,18.341,23.062]
[1688182771012,64.23667128,18.358,18.341,23.062]
[1688182771910,23.048,18.353,18.341,23.062]
[1688182772124,55.0,18.352,18.341,23.062]
[1688182773423,23.046,18.355,18.341,23.062]
[1688182773622,79.16444835,18.354,18.341,23.062]
[1688182773924,78.046,18.354,18.341,23.062]
[1688182775125,59.316,18.358,18.341,23.062]
[1688182775428,1.87152838,18.355,18.346,23.056]
[1688182775627,23.046,18.355,18.346,23.056]
[1688182779530,55.0,18.354,18.344,23.058]
[1688182779731,23.049,18.352,18.344,23.058]
[1688182780027,55.0,18.354,18.344,23.058]
[1688182781932,23.048,18.353,18.344,23.058]
[1688182784835,27.26304493,18.356,18.344,23.058]
[1688182785020,1.21559351,18.355,18.344,23.058]
[1688182785421,23.045,18.355,18.344,23.058]
[1688182785820,23.044,18.356,18.344,23.058]
[1688182786039,0.91367484,18.355,18.344,23.058]
[1688182786935,23.95867484,18.355,18.344,23.058]
[1688182787135,23.045,18.355,18.344,23.058]
[1688182796661,23.045,18.355,18.345,55.0]
[1688182796859,23.045,18.355,18.347,23.055]
[1688182797255,23.045,18.355,18.346,23.056]
[1688182799949,82.374,18.355,18.34,35.18]
[1688182800155,4.07846003,18.354,18.34,58.243]
[1688182800370,23.052,18.35,18.34,58.243]
[1688182800870,23.052,18.35,18.34,69.08019922]
[1688182802970,23.05,18.352,18.34,69.08019922]
[1688182803170,55.0,18.354,18.34,69.08019922]
[1688182803365,23.05,18.352,18.34,69.08019922]
[1688182804073,55.0,18.354,18.34,69.08019922]
[1688182804258,1.419886,18.353,18.341,65.83719922]
[1688182804464,55.0,18.354,18.344,23.058]
[1688182805062,59.316,18.358,18.344,23.058]
[1688182805274,4.153276,18.357,18.344,23.058]
[1688182805459,59.153276,18.357,18.344,23.058]
[1688182805773,23.048,18.353,18.344,23.058]
[1688182806155,78.044,18.357,18.344,23.058]
[1688182806363,2.48021117,18.356,18.344,23.058]
[1688182806563,57.48021117,18.356,18.344,23.058]
[1688182806858,55.0,18.356,18.344,23.058]
[1688182807061,2.21848647,18.356,18.344,23.058]
[1688182807356,3.04941155,18.357,18.344,23.058]
[1688182807860,59.316,18.358,18.344,23.058]
[1688182807861,23.045,18.356,18.344,23.058]
[1688182808461,82.358,18.358,18.348,23.053]
[1688182808677,59.316,18.358,18.35,35.18]
[1688182808875,23.033,18.365,18.352,82.386]
[1688182809081,23.033,18.365,18.353,55.0]
[1688182809262,23.031,18.367,18.356,23.043]
[1688182809579,59.287,18.369,18.356,23.043]
[1688182809580,23.028,18.369,18.356,23.043]
[1688182809874,23.03,18.367,18.359,23.039]
[1688182811577,23.03,18.367,18.357,23.041]
[1688182813384,23.03,18.367,18.358,55.0]
[1688182813566,23.03,18.367,18.36,23.038]
[1688182814166,23.03,18.367,18.359,23.039]
[1688182814370,23.03,18.367,18.36,35.41]
[1688182814967,23.03,18.367,18.353,10.83719922]
[1688182815780,23.03,18.367,18.355,23.044]
[1688182816772,23.03,18.367,18.353,10.83719922]
[1688182816981,55.67032456,18.366,18.351,98.7033]
[1688182817168,23.037,18.362,18.351,121.7533]
[1688182817371,23.037,18.362,18.351,98.7033]
[1688182819385,23.037,18.362,18.351,121.7533]
[1688182822484,153.7033,18.366,18.352,55.0]
[1688182822485,23.035,18.363,18.352,55.0]
[1688182822688,55.0,18.366,18.352,55.0]
[1688182822875,23.034,18.364,18.356,23.043]
[1688182828490,55.0,18.363,18.352,23.048]
[1688182828801,23.039,18.36,18.352,23.048]
[1688182828978,23.037,18.362,18.352,23.048]
[1688182832397,23.036,18.363,18.352,23.048]
[1688182839586,82.34,18.363,18.347,70.19119922]
[1688182839791,23.041,18.358,18.35,23.051]
[1688182841586,23.04,18.359,18.35,23.051]
[1688182841782,23.051,18.361,18.35,23.051]
[1688182841783,46.09,18.361,18.35,23.051]
[1688182842081,23.039,18.361,18.35,23.051]
[1688182849388,55.0,18.362,18.35,23.051]
[1688182850688,78.037,18.362,18.35,23.051]
[1688182850895,78.037,18.362,18.349,23.052]
[1688182850896,35.12,18.36,18.349,23.052]
[1688182851097,23.043,18.357,18.349,23.052]
[1688182851295,55.0,18.356,18.349,23.052]
[1688182851496,78.045,18.356,18.347,23.054]
[1688182854708,78.045,18.356,18.345,23.057]
[1688182854896,78.045,18.356,18.343,23.059]
[1688182855291,0.87848896,18.355,18.33,35.51]
[1688182855490,23.054,18.348,18.336,23.068]
[1688182855717,59.333,18.354,18.337,20.0]
[1688182855896,23.051,18.351,18.342,23.061]
[1688182856095,55.0,18.35,18.342,23.061]
[1688182856299,113.422,18.35,18.338,13.04090164]
[1688182856609,23.058,18.345,18.334,36.11190164]
[1688182856802,23.062,18.342,18.334,36.11190164]
[1688182857199,23.06,18.344,18.334,36.11190164]
[1688182857403,23.059,18.345,18.334,36.11190164]
[1688182860114,23.059,18.345,18.332,36.11390164]
[1688182860303,59.361,18.346,18.332,36.11390164]
[1688182860304,23.063,18.341,18.332,36.11390164]
[1688182861616,82.408,18.346,18.332,36.11390164]
[1688182861918,23.057,18.346,18.332,36.11390164]
[1688182862400,23.057,18.346,18.336,23.068]
[1688182864021,23.057,18.346,18.337,4.29596444]
[1688182864217,23.057,18.346,18.339,23.064]
[1688182866422,23.057,18.346,18.337,23.066]
[1688182866925,27.71204017,18.347,18.337,23.066]
[1688182867308,27.71204,18.349,18.337,23.066]
[1688182867514,27.71204,18.349,18.338,5.93091822]
[1688182867726,23.056,18.346,18.338,28.99691822]
[1688182868025,23.056,18.346,18.336,23.068]
[1688182868203,23.056,18.346,18.337,5.93091822]
[1688182869421,27.71204,18.349,18.337,5.93091822]
[1688182869727,23.056,18.346,18.336,23.068]
[1688182870424,23.056,18.346,18.337,11.68039486]
[1688182871507,23.056,18.346,18.337,34.74739486]
[1688182871823,23.056,18.346,18.335,23.07]
[1688182872025,23.056,18.346,18.336,11.68039486]
[1688182874509,55.0,18.345,18.334,11.68039486]
[1688182874710,23.062,18.342,18.334,11.68039486]
[1688182875415,23.062,18.342,18.332,11.68039486]
[1688182875912,23.062,18.342,18.332,34.75439486]
[1688182880615,55.0,18.341,18.332,34.75439486]
[1688182880815,55.0,18.341,18.331,99.2296]
[1688182880816,23.066,18.339,18.331,99.2296]
[1688182881014,23.066,18.339,18.332,4.18378608]
[1688182881938,23.066,18.339,18.33,23.076]
[1688182882735,82.447,18.339,18.327,6.05421127]
[1688182882936,23.071,18.335,18.325,23.081]
[1688182886134,23.072,18.334,18.325,23.081]
[1688182890719,23.072,18.334,18.323,23.084]
[1688182890920,23.072,18.334,18.324,10.98485709]
[1688182891231,23.072,18.334,18.322,10.98485709]
[1688182891431,23.072,18.334,18.322,34.06985709]
[1688182894435,55.0,18.333,18.322,34.06985709]
[1688182894636,23.075,18.332,18.322,34.06985709]
[1688182899630,55.0,18.331,18.322,34.06985709]
[1688182899829,78.076,18.331,18.322,23.085]
[1688182900030,78.076,18.331,18.323,4.55117223]
[1688182900229,78.076,18.331,18.323,27.63617223]
[1688182900428,78.076,18.331,18.323,23.085]
[1688182901242,78.076,18.331,18.321,99.163]
[1688182901442,78.076,18.331,18.322,5.78857396]
[1688182901642,78.076,18.331,18.321,6.03671798]
[1688182902838,78.076,18.331,18.322,23.086]
[1688182903429,78.076,18.331,18.314,139.11983397]
[1688182903430,23.082,18.326,18.316,23.093]
[1688182904043,23.086,18.323,18.316,23.093]
[1688182904238,23.086,18.323,18.314,115.5652]
[1688182904439,23.09,18.32,18.312,23.098]
[1688182906736,23.088,18.322,18.312,23.098]
[1688182906936,23.088,18.322,18.313,4.07001107]
[1688182907149,23.088,18.322,18.313,27.16701107]
[1688182907347,23.088,18.322,18.313,23.097]
[1688182909151,23.088,18.322,18.31,4.21503519]
[1688182909448,23.093,18.317,18.309,23.103]
[1688182910654,20.0,18.321,18.309,23.103]
[1688182910847,23.093,18.317,18.31,12.08390218]
[1688182911053,23.093,18.317,18.304,12.08390218]
[1688182911454,23.093,18.317,18.306,23.106]
[1688182911659,23.093,18.317,18.307,12.08390218]
[1688182912838,23.093,18.317,18.306,12.08390218]
[1688182913541,55.0,18.316,18.306,12.08390218]
[1688182913745,23.098,18.313,18.305,23.107]
[1688182914851,23.098,18.313,18.303,114.8584]
[1688182915160,55.0,18.312,18.304,4.57597829]
[1688182915361,59.459,18.316,18.3,35.7]
[1688182915561,55.0,18.315,18.301,8.44385888]
[1688182915944,23.1,18.312,18.302,23.111]
[1688182916951,23.1,18.312,18.301,5.20728298]
[1688182917151,55.0,18.311,18.301,5.20728298]
[1688182917346,23.104,18.308,18.298,23.116]
[1688182917547,23.104,18.308,18.299,20.0]
[1688182918152,23.104,18.308,18.296,23.118]
[1688182918358,23.11,18.304,18.296,23.118]
[1688182918757,23.11,18.304,18.294,23.121]
[1688182918960,23.11,18.304,18.295,30.0]
[1688182919256,23.11,18.304,18.295,23.12]
[1688182919760,23.107,18.306,18.295,23.12]
[1688182920655,23.107,18.306,18.296,55.0]
[1688182920958,23.107,18.306,18.298,23.116]
[1688182922346,23.107,18.306,18.296,55.0]
[1688182922548,59.476,18.31,18.296,55.0]
[1688182922549,82.579,18.31,18.297,23.117]
[1688182922760,59.457,18.316,18.3,35.47]
[1688182922951,23.101,18.311,18.303,23.109]
[1688182923150,23.099,18.312,18.303,23.109]
[1688182925368,23.098,18.314,18.303,23.109]
[1688182927678,23.097,18.314,18.303,23.109]
[1688182928168,46.56991777,18.32,18.301,91.0474]
[1688182928169,108.426,18.326,18.307,82.589]
[1688182928349,180.58,18.33,18.304,55.0]
[1688182928350,23.085,18.324,18.313,23.098]
[1688182928550,143.902,18.33,18.313,23.098]
[1688182928754,143.902,18.33,18.314,9.23115756]
[1688182928958,59.418,18.326,18.314,9.23115756]
[1688182929151,82.5,18.326,18.317,23.092]
[1688182931257,78.083,18.325,18.317,23.092]
[1688182933374,78.083,18.325,18.313,23.097]
[1688182935869,78.083,18.325,18.31,91.0474]
[1688182936168,78.083,18.325,18.311,5.21580342]
[1688182936169,106.61655751,18.325,18.311,5.21580342]
[1688182936375,1.81990597,18.324,18.312,23.099]
[1688182936564,23.089,18.321,18.312,23.099]
[1688182936768,55.0,18.32,18.312,23.099]
[1688182937076,78.09,18.32,18.312,23.099]
[1688182937776,55.0,18.32,18.312,23.099]
[1688182937966,55.0,18.321,18.312,23.099]
[1688182938167,23.085,18.324,18.312,23.099]
[1688182938366,86.88883011,18.326,18.312,23.099]
[1688182938367,86.88883011,18.326,18.312,82.568]